Workbook

Sheet Cover
A2: Window Dimensions | I2: *Solve on Calcs sheet
A3: Height | B3: 1 | C3: m
A4: Width | B4: 0.75 | C4: m
A6: Conditions | F6: U Factor
A7: Inside Temperature | B7: 70 | C7: F | F7: =Calcs!B7 -> 0.1790174385 | G7: W/m2
A8: Outside Temperature | B8: 0 | C8: F | F8: =F7/5.678 -> 0.03152825616 | G8: Btu/hr*ft2
A9: Wind Speed | B9: 40 | C9: mph
F10: Heat Loss
A11: Gas Between Panes | F11: =F7*B3*B4 -> 0.1342630789 | G11: W
A12: Gas | B12: Argon | G12: Btu/hr
A13: Spacing | B13: 10 | C13: mm
A15: Glass
B16: Inner Pane | C16: Outer Pane
A17: Material | B17: Window Glass | C17: Window Glass
A18: Thickness | B18: 2 | C18: 2 | D18: mm

Sheet Calcs
A2: Ti | B2: =IF(Cover!C7="C",Cover!B7+273, (5/9 * (Cover!B7 - 32) + 273 )) -> 294.1111111 | C2: K | E2: Interior | F2: To | G2: =B2 -> 294.1111111 | I2: =I6*-0.5 -> -7 | N2: Error | O2: =SUMSQ(B8-B15,B8-F15,B8-B34,B8-F34,B8-J34) -> 2.364965107e-08
A3: To | B3: =IF(Cover!C8="C",Cover!B8+273, (5/9 * (Cover!B8 - 32) + 273 )) -> 255.2222222 | C3: K | E3: Inner Glass (inside) | F3: T1 | G3: =$G$2+H3*($G$7-$G$2) -> 289.3282259 | H3: 0.1229884756 | I3: 0
A4: V | B4: =Cover!B9*VLOOKUP(Cover!C9,speedlook,2,FALSE) -> 17.88 | C4: m/s | E4: Inner Glass (outside) | F4: T2 | G4: =$G$2+H4*($G$7-$G$2) -> 274.8246868 | H4: 0.495936624 | I4: =I3+Cover!B18 -> 2
A5: H | B5: =Cover!B3*VLOOKUP(Cover!C3,lengthlook,2,FALSE) -> 1 | C5: m | E5: Outer Glass (inside) | F5: T3 | G5: 270.5645028 | H5: 0.605484215 | I5: =I4+Cover!B13 -> 12
A6: W | B6: =Cover!B4*VLOOKUP(Cover!C4,lengthlook,2,FALSE) -> 0.75 | C6: m | E6: Outer Glass (outside) | F6: T4 | G6: 256.0606528 | H6: 0.9784403572 | I6: =I5+Cover!C18 -> 14
A7: U | B7: =1/SUM(B14,F14,B33,F33,J33) -> 0.1790174385 | C7: W/m2 | E7: Exterior | F7: T5 | G7: =B3 -> 255.2222222 | I7: =I6*1.5 -> 21
A8: q" | B8: =B7*(G2-G7) -> 6.961789275
A11: Inner Pane | E11: Outer Pane
A12: t | B12: =Cover!B18*VLOOKUP(Cover!D18,lengthlook,2,FALSE) -> 0.002 | C12: m | E12: t | F12: =Cover!C18*VLOOKUP(Cover!D18,lengthlook,2,FALSE) -> 0.002 | G12: m
A13: k | B13: =VLOOKUP(Cover!B17,MaterialProps,2,FALSE) -> 0.96 | C13: W/m*K | E13: k | F13: =VLOOKUP(Cover!C17,MaterialProps,2,FALSE) -> 0.96 | G13: W/m*K
A14: R | B14: =Cover!B18/B13 -> 2.083333333 | E14: R | F14: =Cover!C18/F13 -> 2.083333333
A15: q" | B15: =(G3-G4)/B14 -> 6.961698769 | E15: q" | F15: =(G5-G6)/F14 -> 6.961847988
A17: Interior of Building | E17: Between Panes | I17: Exterior of Building
A18: Tf | B18: =AVERAGE(G2:G3) -> 291.7196685 | E18: Tf | F18: =AVERAGE(G4:G5) -> 272.6945948 | I18: Tf | J18: =AVERAGE(G6:G7) -> 255.6414375
A19: ρ | B19: =Gases!B5 -> 1.200036027 | E19: ρ | F19: =Gases!C5 -> 1.80072202 | I19: ρ | J19: =Gases!D5 -> 1.368377053
A20: cp | B20: =Gases!B6 -> 1006.834393 | E20: cp | F20: =Gases!C6 -> 521.9450422 | I20: cp | J20: =Gases!D6 -> 1006.112829
A21: μ | B21: =Gases!B7 -> 1.804598343e-05 | E21: μ | F21: =Gases!C7 -> 2.096989358e-05 | I21: μ | J21: =Gases!D7 -> 1.624207187e-05
A22: ν | B22: =Gases!B8 -> 1.51530505e-05 | E22: ν | F22: =Gases!C8 -> 1.182475202e-05 | I22: ν | J22: =Gases!D8 -> 1.194208794e-05
A23: k | B23: =Gases!B9 -> 0.02563757348 | E23: k | F23: =Gases!C9 -> 0.01634160158 | I23: k | J23: =Gases!D9 -> 0.022751315
A24: α | B24: =Gases!B10 -> 2.140699625e-05 | E24: α | F24: =Gases!C10 -> 1.764331543e-05 | I24: α | J24: =Gases!D10 -> 1.664466975e-05
A25: β | B25: =Gases!B11 -> 0.003443737753 | E25: β | F25: =Gases!C11 -> 0.003695353386 | I25: β | J25: =Gases!D11 -> 0.003924780833
A26: Pr | B26: =Gases!B12 -> 0.7091528862 | E26: Pr | F26: =Gases!C12 -> 0.6698436416 | I26: Pr | J26: =Gases!D12 -> 0.7185332263
A28: Ra | B28: =9.81*B25*(G2-G3)*(B29)^3/(B24*B22) -> 498119139.6 | E28: Ra | F28: =9.81*F25*(G4-G5)*(F29)^3/(F24*F22) -> 740.2545916
A29: L | B29: =B5 -> 1 | E29: L | F29: =Cover!B13*VLOOKUP(Cover!C13,lengthlook,2,FALSE) -> 0.01 | I29: D | J29: 4 | K29: m
E30: H/L | F30: =B5/F29 -> 100 | I30: Re | J30: =J19*B4*J29/J21 -> 6025482.928 | K30: =J30/500000 -> 12.05096586
A31: Nu | B31: =IF((0.825*0.387*B28^(1/6)/(1+(0.492/B26)^(9/16))^(8/27))^2<1,1,(0.825*0.387*B28^(1/6)/(1+(0.492/B26)^(9/16))^(8/27))^2) -> 56.77499928 | E31: Nu | F31: =IF(0.22*(F26/(0.2+F26)*F28)^0.28*(F30)^-0.25<1,1,0.22*(F26/(0.2+F26)*F28)^0.28*(F30)^-0.25) -> 1 | I31: Nu | J31: =0.664*J30^0.5*J26^(1/3) -> 1459.86589
A32: h | B32: =B31*B23/B29 -> 1.455573216 | E32: h | F32: =F31*F23/F29 -> 1.634160158 | I32: h | J32: =J23*J31/J29 -> 8.303467181
A33: R | B33: =1/B32 -> 0.6870145651 | E33: R | F33: =1/F32 -> 0.6119351247 | I33: R | J33: =1/J32 -> 0.1204316195
A34: q" | B34: =(G2-G3)/B33 -> 6.961839539 | F34: =(G4-G5)/F33 -> 6.96182311 | J34: =(G6-G7)/J33 -> 6.961880598

Sheet Materials
A1: Material | B1: Thermal Conductivity (W/m*K)
A2: Glass Plate (Lime Soda) | B2: 1.4
A3: Pyrex | B3: 1.4
A4: Window Glass | B4: 0.96 | C4: http://www.engineeringtoolbox.com/thermal-conductivity-d_429.html

Sheet Gases
B1: Data
C2: =Cover!B12 -> Argon
B3: T1 | C3: T2 | D3: T3
A4: T | B4: =Calcs!B18 -> 291.7196685 | D4: =Calcs!J18 -> 255.6414375
A5: ρ | B5: =LinearInterp($F$14:$J$14,$F15:$J15,B$4) -> 1.200036027 | C5: =IF($C$2="Argon",C24,C15) -> 1.80072202 | D5: =LinearInterp($F$14:$J$14,$F15:$J15,D$4) -> 1.368377053
A6: cp | B6: 1006.834393 | C6: =IF($C$2="Argon",C25,C16) -> 521.9450422 | D6: 1006.112829
A7: μ | B7: 1.804598343e-05 | C7: 2.096989358e-05 | D7: 1.624207187e-05
A8: ν | B8: 1.51530505e-05 | C8: 1.182475202e-05 | D8: 1.194208794e-05
A9: k | B9: 0.02563757348 | C9: 0.01634160158 | D9: 0.022751315
A10: α | B10: 2.140699625e-05 | C10: 1.764331543e-05 | D10: 1.664466975e-05
A11: β | B11: 0.003443737753 | C11: 0.003695353386 | D11: 0.003924780833
A12: Pr | B12: 0.7091528862 | C12: 0.6698436416 | D12: 0.7185332263
E13: Air | F13: Heat Transfer
C14: =Calcs!F18 -> 272.6945948 | E14: T | F14: 200 | G14: 250 | H14: 300 | I14: 350 | J14: 400
C15: =LinearInterp($F$14:$J$14,$F15:$J15,C$14) -> 1.288807021 | E15: ρ | F15: 1.7458 | G15: 1.3947 | H15: 1.1614 | I15: 0.995 | J15: 0.8711
C16: 1006.453892 | E16: cp | F16: 1007 | G16: 1006 | H16: 1007 | I16: 1009 | J16: 1014
C17: 1.709472974e-05 | E17: μ | F17: 1.325e-05 | G17: 1.596e-05 | H17: 1.846e-05 | I17: 2.082e-05 | J17: 2.301e-05
C18: 1.345981894e-05 | E18: ν | F18: 7.59e-06 | G18: 1.144e-05 | H18: 1.589e-05 | I18: 2.092e-05 | J18: 2.641e-05
C19: 0.02411556758 | E19: k | F19: 0.0181 | G19: 0.0223 | H19: 0.0263 | I19: 0.03 | J19: 0.0338
C20: 1.889568651e-05 | E20: α | F20: 1.03e-05 | G20: 1.59e-05 | H20: 2.25e-05 | I20: 2.99e-05 | J20: 3.83e-05
C21: 0.003697405403 | E21: β | F21: =1/F14 -> 0.005 | G21: =1/G14 -> 0.004 | H21: 0.003333333333 | I21: 0.002857142857 | J21: 0.0025
C22: 0.7140994054 | E22: Pr | F22: 0.737 | G22: 0.72 | H22: 0.707 | I22: 0.7 | J22: 0.69
E23: Argon | F23: http://www.mhtl.uwaterloo.ca/old/onlinetools/airprop/airprop.html
C24: =LinearInterp($F$14:$J$14,$F24:$J24,C$14) -> 1.80072202 | E24: ρ | F24: 2.4379 | G24: 1.9486 | H24: 1.6228 | I24: 1.3903 | J24: 1.2177
C25: 521.9450422 | E25: cp | F25: 523.42 | G25: 522.29 | H25: 521.53 | I25: 521.14 | J25: 521.12
C26: 2.096989358e-05 | E26: μ | F26: 1.601e-05 | G26: 1.9507e-05 | H26: 2.273e-05 | I26: 2.5722e-05 | J26: 2.849e-05
C27: 1.182475202e-05 | E27: ν | F27: 6.5671e-06 | G27: 1.0011e-05 | H27: 1.4007e-05 | I27: 1.85e-05 | J27: 2.3397e-05
C28: 0.01634160158 | E28: k | F28: 0.012416 | G28: 0.015181 | H28: 0.017738 | I28: 0.020116 | J28: 0.02232
C29: 1.764331543e-05 | E29: α | F29: 9.7567e-06 | G29: 1.4895e-05 | H29: 2.095e-05 | I29: 2.7778e-05 | J29: 3.516e-05
C30: 0.003695353386 | E30: β | F30: 0.0049963 | G30: 0.0039976 | H30: 0.0033317 | I30: 0.0028559 | J30: 0.0025022
C31: 0.6698436416 | E31: Pr | F31: 0.67492 | G31: 0.67111 | H31: 0.66832 | I31: 0.66637 | J31: 0.66518

Sheet Lookups
A1: Temperature | D1: Speed | F1: Length
A2: C | D2: m/s | E2: 1 | F2: in | G2: 0.0254
A3: F | D3: mph | E3: 0.447 | F3: m | G3: 1
F4: mm | G4: 0.001
A5: Air
A6: Argon
